[Event "Israel National League 2024"]
[Site "Israel"]
[Date "2024.01.12"]
[Round "2.32"]
[White "Gorshtein, Ido"]
[Black "Sutovsky, Emil"]
[Result "1-0"]
[ECO "A35"]
[WhiteElo "2523"]
[BlackElo "2597"]
[Annotator "TA"]
[PlyCount "75"]
[EventDate "2024.01.07"]
[EventType "team-tourn"]
[EventCountry "ISR"]
[SourceTitle "playchess.com"]
[Source "ChessBase"]
[SourceQuality "1"]
[TimeControl "40/5400+30:1800+30"]

{[%evp 23,75,42,22,19,55,14,60,12,76,38,66,68,73,50,47,60,62,49,101,99,98,98,107,84,93,104,112,118,89,77,49,57,191,216,216,217,373,387,564,565,563,562,861,564,562,544,822,635,639,639,816,809,1487,877]} 1. Nf3 {[%emt 0:00:04]} c5 {[%emt 0:00:53]} 2. c4 {[%emt 0:00:07]} Nf6 {[%emt 0:01:53]} 3. Nc3 {[%emt 0:00:10]} Nc6 {[%emt 0:01:10]} 4. e3 {[%emt 0:00:08]} g6 {[%emt 0:09:59]} 5. d4 {[%emt 0:00:05]} cxd4 {[%emt 0:00:03]} 6. exd4 {[%emt 0:00:05]} d5 {[%emt 0:00:13]} 7. cxd5 {[%emt 0:00:04]} Nxd5 {[%emt 0:00:04]} 8. Qb3 {[%emt 0:00:12]} Nxc3 {[%emt 0:07:02]} 9. Bc4 {[%emt 0:00:11]} e6 {[%emt 0:00:04]} 10. bxc3 {[%emt 0:00:08]} Bg7 {[%emt 0:05:52]} 11. Ba3 {[%emt 0:00:06]} Bf8 {[%emt 0:00:29]} 12. Bxf8 {[%emt 0:00:33]} Kxf8 {[%emt 0:00:06]} 13. h4 {[%emt 0:01:46] A35: Symmetrical English: 2 Nc3 Nc6 3 Nf3.} h6 {[%emt 0:05:25]} 14. O-O {[%emt 0:01:12][%cal Oh4h5]} Kg7 {[%emt 0:00:36]} (14... b6 $11) 15. Qb2 {[%emt 0:00:06] [#]} (15. Bd3 $14) 15... Bd7 $146 {[%emt 0:09:14]} (15... b6 $1 $11 {keeps the balance.}) ({Predecessor:} 15... b6 16. Bd3 Bb7 17. Rae1 Qf6 18. Re3 Rhd8 19. Rfe1 Rac8 20. h5 g5 21. Bb1 Rc7 22. Qc2 Kf8 23. Qc1 Nxd4 24. Nxd4 Rxd4 25. Qa3+ {1-0 Svane,R (2620)-Galchenko,M (2442) Titled Tuesday intern op 14th Mar Late blitz 2023 (6)}) 16. Be2 {[%emt 0:00:49]} (16. Qxb7 Na5 17. Qa6 Bc8 $11) 16... b6 {[%emt 0:07:22] [#]} 17. h5 $1 {[%emt 0:05:05]} gxh5 {[%emt 0:03:06]} 18. Rfd1 {[%emt 0:04:34][%cal Bf1d1,Bd1d3,Bd3e3][%mdl 32]} Qf6 {[%emt 0:08:07]} 19. Rd3 {[%emt 0:08:37][%cal Of3e5][%mdl 1024] White has compensation.} h4 {[%emt 0:13:24]} 20. Rad1 {[%emt 0:02:57]} Ne7 {[%emt 0:00:50] [#]} (20... Rad8 $14) 21. Ne5 $1 $16 {[%emt 0:01:57]} Bc6 {[%emt 0:02:04] Prevents Rf3.} 22. c4 {[%emt 0:10:07]} Kh7 {[%emt 0:12:57]} 23. Re3 {[%emt 0:22:35][%cal Od4d5] Against Be4} Bb7 {[%emt 0:00:01] [#]} 24. d5 $1 {[%emt 0:03:05] Qb1+ would be deadly.} Rhg8 {[%emt 0:02:12]} 25. Bd3+ {[%emt 0:04:09]} Nf5 {[%emt 0:00:20]} 26. Bxf5+ {[%emt 0:02:55]} (26. Qe2 {is more complex.} Qg7 27. Qf3 Kh8 28. Bxf5 exf5 29. Rde1) 26... exf5 {[%emt 0:00:41]} (26... Qxf5 $2 27. Rf3 Qg5 28. Rxf7+ Rg7 29. f4 $18 (29. dxe6 $2 Qxg2#)) 27. f4 {[%emt 0:00:59]} Rg7 {[%emt 0:04:31] [#] A mistake that costs the game.} (27... Rac8 $14) 28. c5 $1 $18 {[%emt 0:01:27][%cal Bc4c5,Bc5c6][%mdl 32] Strongly threatening c6.} Rd8 {[%emt 0:01:51]} (28... Rg3 $2 29. Rxg3 hxg3 30. c6 $18) 29. Qb3 {[%emt 0:03:13]} (29. c6 Bxc6 30. Qb3 Bb7 $17) 29... Rdg8 $2 {[%emt 0:03:53]} (29... Ba6) 30. Rd2 {[%emt 0:00:28]} Qe7 {[%emt 0:00:01]} (30... Rd8 $142 31. c6 Bc8) 31. c6 {[%emt 0:01:47] And now d6 would win. White is clearly winning.} ({Less strong is} 31. cxb6 Qc5 32. Qc3 (32. bxa7 Qc1+ 33. Qd1 Rxg2+ {[%mdl 64] Deflection, Promotion} 34. Rxg2 Qxd1+ 35. Kh2 Rxg2+ {[%mdl 64] Remove Defender} 36. Kxg2 Qd2+ 37. Kf1 Qxe3 38. a8=Q Bxa8 39. Nc4 Qxf4+ 40. Ke1 Qxc4 41. Kf2 h3 42. Kg3 Qf1 43. a4 Bxd5 44. Kh4 Qg2 45. Kh5 Qg5#) 32... axb6 33. Qxc5 bxc5 $11) 31... Qc5 {[%emt 0:00:01] White must now prevent ...Qc1+.} 32. Qc3 {[%emt 0:01:13] Dodges Qc1+} (32. cxb7 $2 {perishes.} Qc1+ 33. Qd1 (33. Rd1 {leads to mate.} Rxg2+ 34. Kf1 Rg1+ 35. Ke2 R8g2+ {[%mdl 64] Deflection} 36. Kd3 Rxd1+) 33... Rxg2+ 34. Rxg2 Qxd1+ $19) 32... Qb5 {[%emt 0:01:17] Threatens to win with ...Qb1+.} 33. Qd3 {[%emt 0:01:27] Repels Qb1+. Active counter play!} Qxd3 {[%emt 0:00:47]} 34. Rexd3 {[%emt 0:00:18]} Ba8 {[%emt 0:00:30]} 35. Ra3 {[%emt 0:01:11]} f6 {[%emt 0:00:29]} 36. Nd7 {[%emt 0:00:16]} Kg6 {[%emt 0:00:17]} 37. Rxa7 {[%emt 0:00:51]} h3 {[%emt 0:00:30]} 38. Ra3 {[%emt 0:00:26] Artfully played by Gorshtein.   Weighted Error Value: White=0.30/Black=0.46} 1-0

[Event "Israel National League 2024"]
[Site "Israel"]
[Date "2024.01.12"]
[Round "2.33"]
[White "Smirin, Ilia"]
[Black "Rozen, Eytan"]
[Result "1/2-1/2"]
[ECO "D79"]
[WhiteElo "2582"]
[BlackElo "2462"]
[Annotator "TA"]
[PlyCount "66"]
[EventDate "2024.01.07"]
[EventType "team-tourn"]
[EventCountry "ISR"]
[SourceTitle "playchess.com"]
[Source "ChessBase"]
[SourceQuality "1"]
[TimeControl "40/5400+30:1800+30"]

{[%evp 21,66,29,32,31,41,14,16,16,18,5,7,0,26,25,29,31,28,20,42,47,68,51,66,66,126,131,147,147,147,148,165,68,57,51,51,60,74,72,76,43,25,28,22,0,63,0,24]} 1. Nf3 {[%emt 0:00:04]} Nf6 {[%emt 0:00:40]} 2. g3 {[%emt 0:00:55]} g6 {[%emt 0:00:51]} 3. c4 {[%emt 0:04:15]} Bg7 {[%emt 0:02:28]} 4. Bg2 {[%emt 0:02:59]} c6 {[%emt 0:01:00]} 5. O-O {[%emt 0:01:41]} d5 {[%emt 0:01:40]} 6. cxd5 {[%emt 0:00:15]} cxd5 {[%emt 0:00:05]} 7. d4 {[%emt 0:00:25]} O-O {[%emt 0:01:17]} 8. Ne5 {[%emt 0:01:02]} Nc6 {[%emt 0:01:27]} 9. Nc3 {[%emt 0:01:46]} Ne4 {[%emt 0:00:28]} 10. Nxc6 {[%emt 0:05:02]} bxc6 {[%emt 0:00:36]} 11. Nxe4 {[%emt 0:00:08]} dxe4 {[%emt 0:00:04]} 12. Be3 {[%emt 0:00:09] D79: Fianchetto Grünfeld: Symmetrical Variation (6 0-0 c6 7 cxd5 cxd5).} Bf5 {[%emt 0:04:08]} 13. Qa4 {[%emt 0:05:41]} Qb6 {[%emt 0:06:14]} 14. b3 {[%emt 0:09:14]} Rfd8 {[%emt 0:05:45][%cal Rg7d4]} 15. Rac1 {[%emt 0:08:49][%cal Ba1c1,Bc1c4,Bc4a4][%mdl 32] [#]} Qb5 $146 {[%emt 0:04:29]} ({Predecessor:} 15... Bxd4 16. Rxc6 Bd7 17. Rxb6 Bxa4 18. Rb4 Bxe3 19. Rxa4 Bb6 20. Bxe4 Rac8 21. Bd3 e6 {½-½ Meier,G (2630)-Tari,A (2596) PRO League KO Stage rapid 2017 (4.5)}) 16. Rc4 {[%emt 0:00:42]} Rd6 {[%emt 0:13:31]} 17. Rfc1 {[%emt 0:01:27]} Qxa4 {[%emt 0:01:33]} 18. Rxa4 {[%emt 0:03:36]} Rad8 $1 {[%emt 0:02:28][%cal Rg7d4]} 19. h3 {[%emt 0:07:15]} Bxd4 {[%emt 0:07:08]} 20. g4 $36 {[%emt 0:00:05][%mdl 2048] [#] Rxd4 would be deadly. White is more active.} Bxe3 {[%emt 0:01:24]} 21. fxe3 {[%emt 0:00:03]} Be6 {[%emt 0:01:35]} 22. Bxe4 {[%emt 0:00:42]} Rd2 {[%emt 0:05:26]} (22... Rd1+ $14 23. Rxd1 Rxd1+ 24. Kf2 c5) 23. Bd3 $16 {[%emt 0:03:02]} ({Weaker is} 23. Rxa7 Rxe2 24. Bxc6 Rxe3 $15) 23... Rd7 {[%emt 0:07:16]} 24. Kf1 {[%emt 0:10:19]} ({Much worse is} 24. Rxc6 $6 R7xd3 25. exd3 Bd7 $14) 24... Rb2 {[%emt 0:09:44]} 25. Rxc6 {[%emt 0:02:16]} Bd5 {[%emt 0:00:08]} 26. Rc5 {[%emt 0:02:38]} (26. Rca6 $18) 26... Bg2+ $1 $14 {[%emt 0:03:19][%mdl 64] Double Attack} 27. Ke1 {[%emt 0:10:44] Black must now prevent h4.} Bxh3 {[%emt 0:00:08]} 28. g5 {[%emt 0:00:20]} Bf5 {[%emt 0:02:58] [#]} 29. e4 $1 {[%emt 0:01:19]} ({Don't play} 29. Bxf5 gxf5 30. Rxf5 Rdd2 $11) 29... Bg4 {[%emt 0:00:30]} 30. Rca5 {[%emt 0:01:58]} Rc7 $1 {[%emt 0:02:37][%cal Og4e2]} 31. Rc4 {[%emt 0:00:13]} Rd7 {[%emt 0:01:16]} 32. Rca4 {[%emt 0:04:40]} Rc7 {[%emt 0:00:06][%cal Og4e2]} 33. Rc4 {[%emt 0:07:18]} Rd7 {[%emt 0:00:15] Weighted Error Value: White=0.12 (very precise) /Black=0.07 (flawless)} 1/2-1/2

[Event "Israel National League 2024"]
[Site "Israel"]
[Date "2024.01.12"]
[Round "2.34"]
[White "Erenberg, Ariel"]
[Black "Globus, Or"]
[Result "1-0"]
[ECO "B94"]
[WhiteElo "2496"]
[BlackElo "2434"]
[Annotator "TA"]
[PlyCount "71"]
[EventDate "2024.01.07"]
[EventType "team-tourn"]
[EventCountry "ISR"]
[SourceTitle "playchess.com"]
[Source "ChessBase"]
[SourceQuality "1"]
[TimeControl "40/5400+30:1800+30"]

{[%evp 11,71,5,28,25,48,26,50,47,30,35,50,45,27,0,0,0,135,126,314,56,58,31,63,3,81,70,595,-94,0,0,160,171,153,164,185,185,183,188,154,119,193,193,193,193,249,227,239,236,291,265,399,410,383,300,349,336,1331,1424,1817,1792,1732,1310]} 1. e4 {[%emt 0:00:13]} c5 {[%emt 0:04:47]} 2. Nf3 {[%emt 0:00:10]} d6 {[%emt 0:00:21]} 3. d4 {[%emt 0:00:07]} cxd4 {[%emt 0:00:07]} 4. Nxd4 {[%emt 0:00:06]} Nf6 {[%emt 0:00:06]} 5. Nc3 {[%emt 0:00:06]} a6 {[%emt 0:00:47]} 6. Bg5 {[%emt 0:00:23]} Nbd7 {[%emt 0:02:15]} 7. Qe2 {[%emt 0:00:43] 7.a3 is a critical line. B94: Sicilian Najdorf: 6 Bg5 Nbd7.} e6 {[%emt 0:13:21]} 8. O-O-O {[%emt 0:00:20]} Be7 {[%emt 0:02:12][%cal Of6e4]} 9. h4 {[%emt 0:40:45] White is slightly better.} Qc7 {[%emt 0:21:58]} 10. g4 {[%emt 0:00:53]} b5 {[%emt 0:09:35]} 11. a3 {[%emt 0:00:17]} Rb8 {[%emt 0:03:19]} 12. Bg2 {[%emt 0:14:18]} b4 $1 {[%emt 0:04:48]} 13. axb4 {[%emt 0:00:07] [#]} Rb6 $146 {[%emt 0:33:24]} (13... Rxb4 $11 {keeps the balance.} 14. Na2 Rb8) ({Predecessor:} 13... Rxb4 14. Nb3 a5 15. Rd4 O-O 16. Kb1 Nc5 17. Rxb4 axb4 18. Na2 Ba6 19. Qe3 Bc4 {0-1 Khamdamova,A (2172)-Nurmanova,A (2224) KAZ-World Rapid (Women) 2023 (7.8)}) 14. b5 $16 {White is more active.} Rxb5 $2 {[%emt 0:00:00]} 15. Rh3 $2 {[%emt 0:09:30]} (15. Ndxb5 axb5 16. Nxb5 Qa5) ({White should try} 15. Ncxb5 $18 axb5 16. Nxb5) 15... Rb4 $14 {[%emt 0:00:00]} 16. Kb1 {[%emt 0:01:11]} (16. Na2 {keeps more tension.} Ra4 17. Kb1 Bb7 18. Bc1) 16... Bb7 {[%emt 0:00:00]} 17. Nb3 {[%emt 0:04:04]} (17. Bc1 $14) 17... Qb6 {[%emt 0:00:00]} (17... a5 $11 {remains equal.}) 18. Na2 $36 {[%emt 0:01:57][%mdl 2048] Black is under pressure.} Nc5 $2 {[%emt 0:00:00][%mdl 8192]} 19. Bf4 $2 {[%emt 0:24:50]} ({White has to play} 19. Nxb4 $18 Qxb4 20. Nxc5 Qxc5 21. Rc3) 19... Rb5 (19... Bxe4 $1 $17 20. Nxb4 Bxg2) 20. Be3 {[%emt 0:00:00]} a5 $2 {[%emt 0:00:00]} ({Better is} 20... O-O $11) 21. Bxc5 $16 {[%emt 0:00:00]} dxc5 {[%emt 0:00:00]} 22. g5 $1 {[%emt 0:00:00]} a4 {[%emt 0:00:00]} 23. gxf6 {[%emt 0:00:00]} Bxf6 {[%emt 0:00:00]} (23... axb3 $2 24. Nc3 (24. fxg7 $2 {too greedy.} bxa2+ {[%mdl 64] Discovered Attack} 25. Ka1 Rg8 $19) 24... bxc2+ 25. Qxc2 $18) 24. Bf1 {[%emt 0:00:00]} Bc6 {[%emt 0:00:00] [#]} 25. e5 $1 {[%emt 0:00:00]} axb3 {[%emt 0:00:42]} (25... Be7 $16 {might work better.}) 26. Nc3 $18 {[%emt 0:00:00]} bxc2+ {[%emt 0:01:30]} 27. Qxc2 {[%emt 0:00:00]} Rb4 {[%emt 0:00:54]} (27... Bxe5 $2 28. Nxb5 O-O 29. Rb3 $18) (27... Rxb2+ $142 28. Qxb2 Qxb2+ 29. Kxb2 Bxe5) 28. exf6 {[%emt 0:00:00]} gxf6 {[%emt 0:00:02] [#]} 29. Qd2 $1 {[%emt 0:00:00] Qd6 would be deadly.} Rd4 {[%emt 0:02:45] Prevents Qd6} 30. Rd3 {[%emt 0:00:00]} e5 {[%emt 0:00:54] [#]} (30... Rg8 {was necessary.} 31. Be2 e5) 31. f4 $1 {[%emt 0:00:00]} Bd7 {[%emt 0:01:19]} 32. Rxd4 {[%emt 0:00:00]} cxd4 {[%emt 0:00:17]} 33. Ne4 {[%emt 0:00:00] fxe5 is the strong threat.} ({Not} 33. Nd5 Qd6 $18) 33... Be6 $2 {[%emt 0:01:03]} (33... f5) 34. fxe5 {[%emt 0:00:00] White is clearly winning.} ({Weaker is} 34. Nxf6+ Ke7 35. fxe5 Qb3 $11) 34... fxe5 {[%emt 0:00:30]} 35. Qg5 {[%emt 0:00:00][%cal Of1b5] aiming for Bb5+!} h6 {[%emt 0:00:33]} 36. Qxe5 {[%emt 0:00:00] Weighted Error Value: White=0.35/Black=0.72} 1-0

[Event "Israel National League 2024"]
[Site "Israel"]
[Date "2024.01.12"]
[Round "2.35"]
[White "Alekseev, Evgeny"]
[Black "Rozentalis, Eduardas"]
[Result "1-0"]
[ECO "E32"]
[WhiteElo "2563"]
[BlackElo "2455"]
[Annotator "TA"]
[PlyCount "59"]
[EventDate "2024.01.07"]
[EventType "team-tourn"]
[EventCountry "ISR"]
[SourceTitle "playchess.com"]
[Source "ChessBase"]
[SourceQuality "1"]
[TimeControl "40/5400+30:1800+30"]

{[%evp 12,59,7,0,0,0,8,4,0,10,10,2,22,21,22,15,54,47,47,43,55,48,75,69,70,69,114,90,67,75,92,97,91,95,95,98,83,81,104,105,148,122,180,138,143,110,138,123,491,510]} 1. Nf3 {[%emt 0:00:09]} Nf6 {[%emt 0:01:07]} 2. c4 {[%emt 0:00:51]} e6 {[%emt 0:00:06]} 3. Nc3 {[%emt 0:00:35]} Bb4 {[%emt 0:00:26]} 4. Qc2 {[%emt 0:03:02]} d6 {[%emt 0:04:38]} 5. d4 {[%emt 0:05:06]} O-O {[%emt 0:03:04]} 6. a3 {[%emt 0:09:23]} Bxc3+ {[%emt 0:00:09]} 7. Qxc3 {[%emt 0:00:04]} Re8 {[%emt 0:01:44] E32: Nimzo-Indian: Classical (4 Qc2): 4...0-0.} 8. Bg5 {[%emt 0:07:26]} Qe7 {[%emt 0:01:47]} 9. e3 {[%emt 0:07:04]} e5 {[%emt 0:02:28] The position is equal.} 10. dxe5 {[%emt 0:04:44]} dxe5 {[%emt 0:00:06]} 11. Nd2 {[%emt 0:02:19][%cal Bf3d2,Bd2e4,Be4g3][%mdl 32] [#]} Bf5 $146 {[%emt 0:05:52]} ({Predecessor:} 11... a5 12. b3 h6 13. Bh4 Bf5 14. Bd3 Bxd3 15. Qxd3 e4 16. Qc2 Nbd7 17. O-O Qe6 {½-½ Teh,E (2263)-Liu,Y (2516) Asian University rapid 2021 (9)}) 12. Be2 {[%emt 0:03:08]} h6 {[%emt 0:04:18]} 13. Bh4 {[%emt 0:02:34]} Ne4 {[%emt 0:03:28][%mdl 64] [#] Discovered Attack} 14. Nxe4 {[%emt 0:04:57]} ({But not} 14. Bxe7 Nxc3 15. bxc3 Rxe7 $15) 14... Qxh4 {[%emt 0:00:32]} 15. Ng3 {[%emt 0:00:25]} Bh7 {[%emt 0:15:17]} 16. Rd1 {[%emt 0:03:36]} Nc6 {[%emt 0:02:50]} 17. O-O {[%emt 0:07:26][%cal Bh1f1,Bf1d1,Bd1d5][%mdl 32]} Rad8 {[%emt 0:09:09]} 18. Rd5 {[%emt 0:04:09]} Rd6 {[%emt 0:06:48]} 19. Rxd6 {[%emt 0:03:55]} cxd6 {[%emt 0:00:05]} 20. Rd1 {[%emt 0:00:09]} Qe7 {[%emt 0:04:00]} 21. Bd3 {[%emt 0:10:03]} e4 {[%emt 0:10:29]} 22. Bc2 {[%emt 0:03:22]} Rd8 {[%emt 0:03:53]} 23. Rd5 {[%emt 0:04:08]} b6 {[%emt 0:03:23]} 24. h3 $40 {[%emt 0:00:50][%mdl 128] White wants a kill.} Rc8 {[%emt 0:04:21]} 25. Qd2 {[%emt 0:03:03] White is much more active.} Rd8 {[%emt 0:00:52]} 26. b4 {[%emt 0:02:51]} Kf8 {[%emt 0:02:16]} (26... Bg6 $16) 27. Qc3 {[%emt 0:00:49]} Rc8 {[%emt 0:00:55]} 28. Bb3 {[%emt 0:02:24]} Ne5 {[%emt 0:03:50]} 29. Qd4 {[%emt 0:00:35][%csl LRd6,LRe4]} f5 $2 {[%emt 0:00:37][%mdl 8192] [#]} (29... Nc6 $16 {is a better chance.} 30. Qd2 Rd8) 30. Rxd6 {[%emt 0:01:04] Weighted Error Value: White=0.05 (flawless) /Black=0.43} 1-0

[Event "Israel National League 2024"]
[Site "Israel"]
[Date "2024.01.12"]
[Round "2.36"]
[White "Mindlin, Alon"]
[Black "Caspi, Israel"]
[Result "1/2-1/2"]
[ECO "E56"]
[WhiteElo "2438"]
[BlackElo "2468"]
[Annotator "TA"]
[PlyCount "59"]
[EventDate "2024.01.07"]
[EventType "team-tourn"]
[EventCountry "ISR"]
[SourceTitle "playchess.com"]
[Source "ChessBase"]
[SourceQuality "1"]
[TimeControl "40/5400+30:1800+30"]

{[%evp 20,59,0,-18,9,-8,-10,-16,-23,-33,-44,-41,-19,-18,-20,-21,7,7,5,20,0,-25,-30,-68,-66,-66,-43,-68,-44,-49,-46,-56,132,146,155,156,277,235,245,0,-9,-32]} 1. d4 {[%emt 0:00:18]} Nf6 {[%emt 0:00:15]} 2. c4 {[%emt 0:00:13]} e6 {[%emt 0:00:04]} 3. Nc3 {[%emt 0:00:05]} Bb4 {[%emt 0:00:04]} 4. e3 {[%emt 0:00:07]} O-O {[%emt 0:00:06]} 5. Bd3 {[%emt 0:00:06]} d5 {[%emt 0:00:25]} 6. Nf3 {[%emt 0:00:05]} c5 {[%emt 0:00:23]} 7. O-O {[%emt 0:00:07]} dxc4 {[%emt 0:00:33]} 8. Bxc4 {[%emt 0:00:04]} Nc6 {[%emt 0:00:06]} 9. a3 {[%emt 0:02:34]} Ba5 {[%emt 0:00:11]} 10. Ne2 {[%emt 0:08:33]} cxd4 {[%emt 0:05:02]} 11. exd4 {[%emt 0:03:47]} Bc7 {[%emt 0:11:38] E56: Nimzo-Indian: Rubinstein: Main Line: 7...Nc6.} 12. Ng3 {[%emt 0:09:27]} h6 {[%emt 0:07:10]} 13. Re1 {[%emt 0:07:54] [#]} b6 $146 {[%emt 0:06:05]} ({Predecessor:} 13... Bb6 14. Be3 Ng4 15. Ba2 Nxe3 16. fxe3 Bc7 17. Ne4 b6 18. d5 exd5 19. Bxd5 Bb7 {1-0 Korobov,A (2565)-Kristjansson,S (2410) Pardubice Skanska op 2004 (6)}) 14. Qd3 {[%emt 0:06:24]} Bb7 {[%emt 0:07:50]} 15. Bd2 {[%emt 0:01:33]} Ne7 {[%emt 0:09:02]} 16. Rad1 {[%emt 0:06:26]} Bd5 {[%emt 0:09:02]} 17. Ba6 {[%emt 0:04:41]} Ng6 {[%emt 0:01:13]} 18. Ne5 {[%emt 0:09:49]} Bxe5 {[%emt 0:08:36]} 19. dxe5 {[%emt 0:00:05]} Nd7 {[%emt 0:00:07]} 20. Qf1 {[%emt 0:14:14]} Nc5 {[%emt 0:03:28] [#] White must now prevent ...Nxa6.} ({Don't play} 20... Ngxe5 21. Bb4 $14) 21. Bc4 {[%emt 0:05:28]} Bxc4 $1 {[%emt 0:05:07]} 22. Qxc4 {[%emt 0:01:44][%cal Od2h6]} Qd3 {[%emt 0:00:15]} 23. Qg4 {[%emt 0:04:42][%cal Od2h6]} Qc2 {[%emt 0:00:37] aiming for ...Nd3.} 24. Bc3 $1 {[%emt 0:02:27]} Rad8 {[%emt 0:04:03] Inhibits Rd2.} (24... Nd3 $2 25. Rd2 Nxe1 26. Rxc2 Nxc2 27. Qa4 $18 (27. Qd1 Nxa3 28. bxa3 Rfd8 $18)) 25. h3 {[%emt 0:02:32]} Nd3 $2 {[%emt 0:06:51]} (25... Rd3 $15 {keeps the upper hand.}) 26. Rd2 $16 {[%emt 0:01:00]} Qb3 {[%emt 0:00:44] [#]} 27. Qd1 {[%emt 0:00:52]} Qd5 {[%emt 0:15:03]} (27... Qxd1 $16 28. Rexd1 Ngf4) 28. Re4 {[%emt 0:01:16] Hoping for Rd4.} Qb5 {[%emt 0:00:00]} 29. Ne2 $2 {[%emt 0:03:52]} ({White should try} 29. Re3 $18) 29... Nc5 $11 {[%emt 0:00:00] Threatens to win with ...Rxd2. Excellent horsemanship.} 30. Rg4 {[%emt 0:00:58] Weighted Error Value: White=0.26 (precise) /Black=0.23 (precise)} 1/2-1/2

[Event "Israel National League 2024"]
[Site "Israel"]
[Date "2024.01.19"]
[Round "3.1"]
[White "Kochavi, Ori"]
[Black "Tarlev, Konstantin"]
[Result "1-0"]
[ECO "B90"]
[WhiteElo "2428"]
[BlackElo "2588"]
[Annotator "TA"]
[PlyCount "74"]
[EventDate "2024.01.07"]
[EventType "team-tourn"]
[EventCountry "ISR"]
[SourceTitle "playchess.com"]
[Source "ChessBase"]
[SourceQuality "1"]
[TimeControl "40/5400+30:1800+30"]

{[%evp 11,74,7,16,0,6,-12,0,0,0,-16,0,0,0,0,0,-20,0,0,0,0,0,0,13,10,13,0,0,0,0,0,0,0,122,127,132,137,208,204,206,200,470,470,449,467,452,435,405,335,287,202,462,304,518,501,681,666,633,631,1030,1030,1021,951,29970,29970,5297]} 1. e4 {[%emt 0:00:46]} c5 {[%emt 0:00:41]} 2. Nf3 {[%emt 0:00:35]} d6 {[%emt 0:00:58]} 3. d4 {[%emt 0:00:05]} cxd4 {[%emt 0:00:04]} 4. Nxd4 {[%emt 0:00:03]} Nf6 {[%emt 0:00:04]} 5. Nc3 {[%emt 0:00:04]} a6 {[%emt 0:00:04]} 6. h3 {[%emt 0:02:14]} e5 {[%emt 0:06:01]} 7. Nf3 {[%emt 0:00:04][%cal Bd4f3,Bf3h2,Bh2g4][%mdl 32] B90: Sicilian Najdorf: Unusual White 6th moves, 6 Be3 Ng4 and 6 Be3 e5.} Be7 {[%emt 0:07:27]} 8. Nh2 {[%emt 0:00:07]} Be6 {[%emt 0:13:41]} 9. Ng4 {[%emt 0:01:46] The position is equal.} Nbd7 {[%emt 0:00:07]} 10. Ne3 {[%emt 0:01:33] [#]} Rc8 $146 {[%emt 0:08:56][%cal Oc8c3]} ({Predecessor:} 10... Nb6 11. a4 d5 12. exd5 Nbxd5 13. Ncxd5 Nxd5 14. Nxd5 Qxd5 15. Qxd5 Bxd5 16. Be3 O-O {1-0 Indjic,A (2613)-Erdogmus,Y (2475) Titled Tuesday intern op 27th Jun Early blitz 2023 (9)}) 11. Bd3 {[%emt 0:00:07]} Nc5 {[%emt 0:02:15]} 12. O-O {[%emt 0:01:56]} O-O {[%emt 0:00:17]} 13. Qf3 {[%emt 0:10:06]} b5 {[%emt 0:06:41]} 14. a3 {[%emt 0:04:31]} Nxd3 {[%emt 0:11:16]} 15. cxd3 {[%emt 0:00:04]} Nd7 {[%emt 0:00:21]} 16. Nf5 {[%emt 0:09:53]} Nc5 {[%emt 0:00:40]} 17. Be3 {[%emt 0:14:45]} Bg5 {[%emt 0:05:00]} (17... Nxd3 $2 18. Bb6 Qd7 19. Qxd3 $18) 18. Rad1 {[%emt 0:05:03]} Bxe3 {[%emt 0:11:59]} 19. fxe3 {[%emt 0:05:24]} Na4 {[%emt 0:01:18]} 20. Nxa4 {[%emt 0:11:11]} bxa4 {[%emt 0:00:04]} 21. d4 {[%emt 0:00:05] [#] dxe5 is the strong threat.} Bb3 {[%emt 0:10:35]} (21... g6 $11 22. d5 Bxf5 23. exf5 Rc2) 22. dxe5 $16 {[%emt 0:18:17] Black is now going downhill.} Bxd1 {[%emt 0:00:05]} 23. Rxd1 $40 {[%emt 0:00:01][%mdl 128] Black must now prevent Qg3. Black is in trouble.} Kh8 {[%emt 0:08:05]} (23... Rc5 $16) 24. Qg4 $18 {[%emt 0:07:16][%csl Gf5][%cal Rg4g7]} (24. exd6 $6 Qd7 $16) (24. Rxd6 Qa5 $11) (24. Nxd6 Rc7 $14) 24... g6 {[%emt 0:01:19]} 25. Nxd6 {[%emt 0:00:03][%mdl 64] Discovered Attack} Rc7 {[%emt 0:02:51] [#]} (25... Qc7 {is a better defense.}) 26. Nxf7+ $1 {[%emt 0:00:30][%mdl 576] Discovered Attack} Rcxf7 {[%emt 0:00:01]} 27. Rxd8 {[%emt 0:00:06]} Rxd8 {[%emt 0:00:02][%mdl 4096] Endgame KQ-KRR} 28. Qe6 {[%emt 0:00:38][%csl LRa6,LRf7] Inhibits Re8.} Kg7 {[%emt 0:02:00]} 29. Qxa6 {[%emt 0:00:58]} Rd2 {[%emt 0:01:27]} 30. e6 {[%emt 0:03:57]} (30. Qxa4 Rff2 31. Kh1 (31. Qa7+ Kh6 $11) 31... Rxg2 $11) 30... Rff2 {[%emt 0:00:03]} 31. Qb7+ {[%emt 0:01:34]} (31. Qxa4 Rxg2+ 32. Kf1 Rdf2+ 33. Ke1 Rxb2 34. Qd7+ Kh6 $11) 31... Kf8 $2 {[%emt 0:00:51]} (31... Kh6 32. Kh1 Rxg2) 32. Qb4+ {[%emt 0:01:51]} ({Weaker is} 32. Qxh7 Rxg2+ 33. Kh1 (33. Kf1 Rgf2+ 34. Kg1 Rg2+ 35. Kh1 Rh2+ 36. Kg1 Rhg2+ $11) 33... Rh2+ 34. Kg1 Rhg2+ 35. Kh1 (35. Kf1 Rgf2+ 36. Kg1 Rg2+ $11) 35... Rh2+ 36. Kg1 Rhg2+ $11) 32... Kg8 {[%emt 0:00:39]} 33. Qb8+ {[%emt 0:00:16]} ({And not} 33. Qxa4 Rxg2+ 34. Kf1 Rgf2+ 35. Kg1 Rg2+ 36. Kh1 Rh2+ 37. Kg1 Rhg2+ $11) 33... Kg7 {[%emt 0:00:01]} 34. Qe5+ {[%emt 0:00:48]} Kf8 {[%emt 0:00:13]} 35. Qh8+ {[%emt 0:00:17]} Ke7 {[%emt 0:00:02]} 36. Qxh7+ {[%emt 0:00:03]} Kd6 {[%emt 0:00:32]} 37. Qd7+ {[%emt 0:00:42]} Ke5 {[%emt 0:00:10] A cool game by Kochavi.   Weighted Error Value: White=0.17 (very precise) /Black=0.64} 1-0